Workbook

Sheet Лист1
A13: 1 | B13: 2 | C13: 3 | D13: 4 | E13: 5 | F13: 6 | G13: 7 | H13: 8 | I13: 9 | J13: 10 | K13: 11 | L13: 12 | M13: 13 | N13: 14 | O13: 15 | P13: 16 | Q13: 17 | R13: 18 | S13: 19 | T13: 20 | U13: 21 | V13: 22 | W13: 23 | X13: 24 | Y13: 25 | Z13: 26
J14: Январь
J15: Дней | Y15: Бюджет без НДС | Z15: Бюджет с НДС
B17: Москва | F17: 0.5 | G17: 0.25 | H17: 102 | I17: 0.6 | J17: 31 | K17: 0 | L17: 10 | M17: 20 | N17: 10 | O17: 20 | P17: 10 | Q17: 20 | R17: 10 | S17: 20 | T17: 1.1 | U17: 0.51 | V17: 0 | W17: 200 | X17: 6591 | Y17: 96000 | Z17: =Y17*1.18 -> 113280
B18: Москва | F18: 0.5 | G18: 0.1 | H18: 74 | I18: 0.6 | J18: 31 | K18: 20 | L18: 5 | M18: 20 | N18: 5 | O18: 20 | P18: 5 | Q18: 20 | R18: 5 | S18: 20 | T18: 1.1 | U18: 0.51 | V18: 0 | W18: 150 | X18: 7569 | Y18: 240000 | Z18: =Y18*1.18 -> 283200
B19: Москва | F19: 0.5 | G19: 0.25 | H19: 102 | I19: 0.6 | J19: 31 | K19: 0 | L19: 20 | M19: 50 | N19: 20 | O19: 50 | P19: 20 | Q19: 50 | R19: 20 | S19: 50 | T19: 1.1 | U19: 0.51 | V19: 0 | W19: 150 | X19: 6591 | Y19: 630000 | Z19: =Y19*1.18 -> 743400
B20: МОСКВА | C20: МОСКВА | G20: =SUM(G17:G19) -> 0.6 | H20: =AVERAGE(H17:H19) -> 92.66666667 | J20: =AVERAGE(J17:J19) -> 31 | K20: =SUM(K17:K19) -> 20 | L20: 35 | M20: 90 | N20: 35 | O20: 90 | P20: 35 | Q20: 90 | R20: 35 | S20: 90 | V20: =SUM(V17:V19) -> 0 | W20: =SUM(#REF!) ->  | Y20: =SUM(Y17:Y19) -> 966000 | Z20: =SUM(Z17:Z19) -> 1139880
B21: Санкт-Петербург | F21: 0.5 | G21: 0.15 | H21: 98 | I21: 0.8 | J21: 31 | K21: 0 | L21: 0 | M21: 0 | N21: 0 | O21: 0 | P21: 0 | Q21: 0 | R21: 0 | S21: 0 | T21: 1.1 | U21: 0.51 | V21: 0 | W21: 200 | X21: 3825 | Y21: 730000 | Z21: =Y21*1.18 -> 861400
B22: Санкт-Петербург | F22: 0.5 | G22: 0.2 | H22: 137 | I22: 0.8 | J22: 31 | K22: 10 | L22: 10 | M22: 50 | N22: 10 | O22: 10 | P22: 50 | Q22: 10 | R22: 10 | S22: 50 | T22: 1.1 | U22: 0.51 | V22: 0 | W22: 150 | X22: 11396 | Y22: 80000 | Z22: 94400
B23: Санкт-Петербург | F23: 0.5 | G23: 0.3 | H23: 65 | I23: 0.8 | J23: 31 | K23: 0 | L23: 15 | M23: 0 | N23: 0 | O23: 15 | P23: 0 | Q23: 0 | R23: 15 | S23: 0 | T23: 1.1 | U23: 0.51 | V23: 0 | W23: 150 | X23: 15000 | Y23: 250000 | Z23: 295000
B24: Санкт-Петербург | F24: 0.5 | G24: 0.1 | H24: 58 | I24: 0.8 | J24: 31 | K24: 10 | L24: 0 | M24: 30 | N24: 10 | O24: 0 | P24: 30 | Q24: 10 | R24: 0 | S24: 30 | T24: 1.1 | U24: 0.51 | V24: 0 | W24: 200 | X24: 15000 | Y24: 560000 | Z24: 660800
B25: САНКТ-ПЕТЕРБУРГ | C25: САНКТ-ПЕТЕРБУРГ | G25: =SUM(G21:G24) -> 0.75 | H25: =AVERAGE(H21:H24) -> 89.5 | J25: =AVERAGE(J21:J24) -> 31 | K25: =SUM(K21:K24) -> 20 | L25: 25 | M25: 80 | N25: 20 | O25: 25 | P25: 80 | Q25: 20 | R25: 25 | S25: 80 | V25: =SUM(V21:V24) -> 0 | W25: =SUM(W21:W24) -> 700 | Y25: =SUM(Y21:Y24) -> 1620000 | Z25: =SUM(Z21:Z24) -> 1911600
B26: TOTAL | C26: ЕКАТЕРИНБУРГ | K26: 40 | L26: 60 | M26: 170 | N26: 55 | O26: 115 | P26: 115 | Q26: 110 | R26: 60 | S26: 170 | V26: 0 | W26: 0 | X26: 0 | Y26: 0 | Z26: 0
